bitfinex-derivatives/quotes_BTCF0:USTF0_20210111
["timestamp","ask_amount","ask_price","bid_price","bid_amount"]
[1610338018954,0.13632608,35784.0,35783.0,0.0002]
[1610338019755,0.1556,35792.0,35783.0,0.0002]
[1610338020953,0.1556,35792.0,35791.0,0.13632608]
[1610338021353,0.1556,35792.0,35791.0,0.13652608]
[1610338022353,0.1556,35792.0,35791.0,0.21322608]
[1610338023757,0.1464,35792.0,35791.0,0.21322608]
[1610338024357,0.1464,35792.0,35791.0,6.21322608]
[1610338024557,0.0701,35792.0,35791.0,6.21322608]
[1610338024957,0.3179,35830.0,35791.0,7.79742608]
[1610338024958,0.26622608,35830.0,35791.0,7.79742608]
[1610338025157,1.0,35831.0,35792.0,0.0115]
[1610338025158,0.1556,35817.0,35792.0,0.0115]
[1610338025360,1.0,35831.0,35792.0,0.0115]
[1610338025560,1.0,35831.0,35793.0,0.0002]
[1610338025858,1.0,35831.0,35792.0,0.03726558]
[1610338026061,0.7237,35831.0,35793.0,0.0002]
[1610338026259,0.1556,35843.0,35793.0,0.0002]
[1610338026859,0.1556,35843.0,35842.0,0.13632608]
[1610338027058,0.09819,35857.0,35842.0,0.13632608]
[1610338027659,3.33170812,35865.0,35842.0,0.13632608]
[1610338028259,3.33170812,35865.0,35855.0,1.0]
[1610338028860,1.0,35873.0,35864.0,0.13632608]
[1610338030259,0.1556,35885.0,35872.0,6.0]
[1610338030461,3.31358249,35902.0,35872.0,6.11316]
[1610338030660,3.31358249,35902.0,35873.0,0.0002]
[1610338030861,0.13632608,35909.0,35901.0,0.13632608]
[1610338031263,3.31269449,35911.0,35901.0,0.13632608]
[1610338031462,0.1556,35912.0,35901.0,0.13632608]
[1610338032261,0.1556,35912.0,35911.0,1.0]
[1610338032461,3.30510856,35925.0,35911.0,1.0]
[1610338032662,1.0,35931.0,35911.0,1.0]
[1610338032861,0.13632608,35929.0,35925.0,0.13632608]
[1610338033064,1.0,35931.0,35925.0,0.13632608]
[1610338033861,1.0,35931.0,35920.0,0.09485]
[1610338034261,0.07587,35939.0,35920.0,0.09485]
[1610338034662,0.07587,35939.0,35908.0,0.10394]
[1610338034862,0.13632608,35918.0,35912.0,0.13632608]
[1610338035463,0.13632608,35918.0,35908.0,0.10394]
[1610338036868,0.13632608,35909.0,35908.0,0.10394]
[1610338037266,0.13632608,35909.0,35873.0,0.2753]
[1610338037768,0.13632608,35909.0,35874.0,0.0002]
[1610338038369,0.0825,35908.0,35874.0,0.0002]
[1610338038569,0.13632608,35909.0,35874.0,0.0002]
[1610338038969,0.13632608,35892.0,35881.0,0.13632608]
[1610338039169,0.13632608,35892.0,35874.0,0.0002]
[1610338039369,0.13632608,35892.0,35882.0,0.0002]
[1610338039770,0.13632608,35892.0,35873.0,0.0002]
[1610338039970,3.8893,35891.0,35873.0,0.0002]
[1610338040772,3.8893,35891.0,35872.0,0.0002]
[1610338040971,0.13632608,35873.0,35872.0,0.0002]
[1610338041374,0.13632608,35873.0,35858.0,0.0829]
[1610338041973,0.13632608,35873.0,35854.0,0.0841]
[1610338042175,0.13632608,35873.0,35859.0,0.0002]
[1610338042373,1.13632608,35873.0,35857.0,0.07584]
[1610338042773,1.13632608,35873.0,35858.0,0.0002]
[1610338042976,0.13632608,35859.0,35858.0,0.0002]
[1610338043574,0.13632608,35859.0,35856.0,0.0002]
[1610338044173,0.08408,35864.0,35856.0,0.0002]
[1610338044575,1.0,35873.0,35856.0,0.0002]
[1610338044974,0.13632608,35862.0,35860.0,0.13632608]
[1610338045575,0.13632608,35862.0,35861.0,0.0002]
[1610338047076,0.13632608,35862.0,35857.0,0.13632608]
[1610338047478,0.13632608,35862.0,35858.0,0.0002]
[1610338048278,0.13632608,35862.0,35861.0,1.0]
[1610338048479,4.0991,35875.0,35861.0,1.0]
[1610338048678,4.0991,35875.0,35862.0,0.0002]
[1610338049076,0.13632608,35869.0,35866.0,0.13632608]
[1610338049477,0.13632608,35869.0,35867.0,0.0002]
[1610338050879,0.13632608,35869.0,35863.0,0.0002]
[1610338051079,0.13632608,35864.0,35863.0,0.0002]
[1610338051480,0.13632608,35864.0,35842.0,4.6747]
[1610338051679,0.13632608,35864.0,35848.0,0.0002]
[1610338051879,0.13632608,35864.0,35843.0,0.0002]
[1610338052279,1.0,35845.0,35843.0,0.0002]
[1610338052480,1.10925,35845.0,35843.0,0.0002]
[1610338053080,0.13632608,35844.0,35843.0,0.0002]
[1610338054281,0.13632608,35844.0,35842.0,4.6747]
[1610338054881,0.13632608,35844.0,35843.0,0.0002]
[1610338055480,0.13632608,35844.0,35842.0,4.6747]
[1610338058284,1.0,35843.0,35842.0,4.6747]
[1610338058483,1.0,35843.0,35822.0,4.2547]
[1610338058685,4.3549,35832.0,35823.0,0.0838]
[1610338058883,4.44894,35832.0,35823.0,0.084]
[1610338059087,0.13632608,35824.0,35823.0,0.0838]
[1610338059485,0.13632608,35824.0,35822.0,4.2306]
[1610338059685,4.92641608,35824.0,35810.0,1.0]
[1610338059985,4.92641608,35824.0,35811.0,0.0002]
[1610338060186,1.0,35818.0,35811.0,0.0002]
[1610338060586,1.0,35818.0,35812.0,0.0842]
[1610338060986,1.0,35818.0,35813.0,0.0002]
[1610338061588,1.0,35818.0,35809.0,0.0002]
[1610338062386,4.79009,35824.0,35806.0,0.0002]
[1610338062586,4.79009,35824.0,35801.0,0.0002]
[1610338062787,4.79009,35824.0,35785.0,0.10795]
[1610338062988,0.13632608,35786.0,35785.0,0.10795]
[1610338063389,0.21952608,35786.0,35785.0,0.10795]
[1610338063589,0.13632608,35786.0,35785.0,0.10815]
[1610338063989,0.22004608,35786.0,35785.0,0.0002]
[1610338064192,1.22004608,35786.0,35785.0,0.0002]
[1610338064389,1.22004608,35786.0,35771.0,0.0002]
[1610338064990,0.0846,35785.0,35771.0,0.0002]
[1610338065190,0.13632608,35772.0,35771.0,0.0002]
[1610338065390,0.12492608,35772.0,35771.0,0.0002]
[1610338066393,1.12492608,35772.0,35771.0,0.0002]
[1610338068193,0.0948,35778.0,35771.0,0.0002]
[1610338069498,0.0948,35778.0,35777.0,0.0002]
[1610338069796,0.0948,35778.0,35771.0,0.0002]
[1610338069997,0.0948,35778.0,35772.0,0.0832]
[1610338070198,0.08372,35786.0,35771.0,0.0002]
[1610338070398,3.29477853,35838.0,35771.0,0.0002]
[1610338070999,0.08049,35804.0,35771.0,0.0002]
[1610338071199,0.2877,35843.0,35798.0,0.13632608]
[1610338071400,1.0,35845.0,35798.0,0.13632608]
[1610338072001,1.0,35845.0,35799.0,0.0002]
[1610338072199,1.0,35819.0,35801.0,1.0]
[1610338072399,1.07192,35819.0,35801.0,1.0]
[1610338072799,1.07192,35819.0,35802.0,0.0002]
[1610338072999,1.07192,35819.0,35802.0,0.09485]
[1610338073199,1.07192,35819.0,35818.0,0.13632608]
[1610338073804,1.07192,35819.0,35818.0,0.13652608]
[1610338074001,1.0,35819.0,35818.0,0.13652608]
[1610338074201,0.1556,35852.0,35818.0,0.13652608]
[1610338074800,0.1556,35852.0,35819.0,0.0002]
[1610338075202,0.1556,35852.0,35832.0,0.13632608]
[1610338075602,0.1556,35883.0,35832.0,0.13632608]
[1610338076804,0.083,35882.0,35832.0,0.13632608]
[1610338077005,0.18266,35882.0,35832.0,0.13632608]
[1610338077205,0.18266,35882.0,35818.0,0.11151]
[1610338077206,0.09966,35882.0,35844.0,0.13632608]
[1610338078804,0.09966,35882.0,35845.0,0.0002]
[1610338079207,0.09966,35882.0,35869.0,0.13632608]
[1610338079405,0.09966,35882.0,35870.0,0.0846]
[1610338079605,0.09966,35882.0,35869.0,0.13632608]
[1610338081208,0.09966,35882.0,35873.0,0.13632608]
[1610338082009,0.3179,35894.0,35873.0,0.13632608]
[1610338083209,0.13632608,35874.0,35873.0,0.13632608]
[1610338083809,0.13632608,35874.0,35873.0,0.13652608]
[1610338084210,0.13632608,35874.0,35873.0,0.0002]
[1610338084611,0.13632608,35874.0,35866.0,0.0002]
[1610338085212,0.11378,35890.0,35871.0,0.13632608]
[1610338085412,0.0843,35889.0,35871.0,0.13632608]
[1610338085611,0.11378,35890.0,35871.0,0.13632608]
[1610338085812,0.11378,35890.0,35872.0,0.0002]
[1610338086414,1.0,35878.0,35872.0,0.0002]
[1610338086813,1.0,35878.0,35865.0,0.08543]
[1610338087014,1.0,35878.0,35866.0,0.0002]
[1610338087214,0.13632608,35867.0,35866.0,0.0002]
[1610338087413,0.22933608,35867.0,35866.0,0.0002]
[1610338087622,0.22933608,35867.0,35861.0,0.0002]
[1610338088614,0.22933608,35867.0,35858.0,0.0841]
[1610338088815,0.22933608,35867.0,35837.0,0.294]
[1610338089015,0.22933608,35867.0,35859.0,0.0002]
[1610338089216,0.13632608,35860.0,35845.0,0.0002]
[1610338089414,0.13632608,35860.0,35840.0,0.0002]
[1610338089614,0.13632608,35860.0,35836.0,0.0002]
[1610338089815,0.13632608,35860.0,35837.0,0.0824]
[1610338090015,0.13632608,35860.0,35838.0,0.0831]
[1610338090218,0.13632608,35860.0,35779.0,1.49185]
[1610338090416,0.3179,35859.0,35778.0,0.02555102]
[1610338090615,0.43222,35859.0,35778.0,0.02555102]
[1610338090915,0.43222,35859.0,35778.0,0.0002]
[1610338091315,0.13632608,35804.0,35799.0,0.13632608]
[1610338091916,0.13632608,35804.0,35800.0,0.0002]
[1610338092115,0.13632608,35804.0,35800.0,0.07347]
[1610338092317,0.13632608,35804.0,35800.0,0.07327]
[1610338092718,0.13632608,35804.0,35801.0,0.0002]
[1610338093616,0.13632608,35804.0,35790.0,0.0843]
[1610338093817,0.24281608,35804.0,35784.0,0.0002]
[1610338094016,0.24281608,35804.0,35791.0,0.0002]
[1610338094216,0.24281608,35804.0,35784.0,0.0002]
[1610338094417,0.24281608,35804.0,35769.0,0.08611]
[1610338094716,0.24281608,35804.0,35770.0,0.0002]
[1610338094916,0.24281608,35804.0,35770.0,0.0851]
[1610338095319,0.13632608,35776.0,35771.0,0.0002]
[1610338096318,1.0,35772.0,35771.0,0.0002]
[1610338096918,1.0,35772.0,35768.0,0.0002]
[1610338097319,1.13632608,35772.0,35768.0,0.0002]
[1610338097718,1.25214608,35772.0,35768.0,0.0002]
[1610338097922,1.25214608,35772.0,35750.0,0.0002]
[1610338098320,1.0,35769.0,35750.0,0.0002]
[1610338098720,1.0,35769.0,35743.0,0.0002]
[1610338098921,1.0,35769.0,35744.0,0.0002]
[1610338099322,1.0,35769.0,35743.0,0.0002]
[1610338100324,0.11582,35772.0,35743.0,0.0002]
[1610338100924,0.11582,35772.0,35736.0,0.0002]
[1610338101324,0.11582,35772.0,35739.0,0.13632608]
[1610338101527,0.11582,35772.0,35740.0,0.0843]
[1610338101728,0.19962,35772.0,35740.0,0.0845]
[1610338101926,0.19962,35772.0,35741.0,0.0002]
[1610338102328,1.0,35743.0,35741.0,0.0002]
[1610338102525,1.0,35743.0,35736.0,0.0002]
[1610338103127,1.0,35743.0,35737.0,0.0847]
[1610338103326,0.13632608,35738.0,35737.0,0.0847]
[1610338103727,0.13632608,35738.0,35737.0,0.0002]
[1610338104126,0.13632608,35738.0,35727.0,0.0845]
[1610338104327,6.13632608,35738.0,35726.0,0.0002]
[1610338104526,6.13632608,35738.0,35728.0,0.0002]
[1610338104926,6.13632608,35738.0,35725.0,0.0002]
[1610338105127,6.13632608,35738.0,35722.0,0.0578]
[1610338105326,0.13632608,35723.0,35710.0,0.10728]
[1610338105728,0.13632608,35723.0,35710.0,0.06048]
[1610338106327,0.22249608,35723.0,35707.0,0.13632608]
[1610338106527,0.22249608,35723.0,35683.0,0.2853]
[1610338106728,0.22249608,35723.0,35708.0,0.0002]
[1610338106929,0.22249608,35723.0,35709.0,0.0844]
[1610338107330,0.22249608,35723.0,35697.0,0.07597]
[1610338107331,0.13632608,35710.0,35698.0,0.0002]
[1610338107529,0.13632608,35710.0,35697.0,0.07597]
[1610338107730,0.13632608,35710.0,35698.0,0.0002]
[1610338108632,0.13632608,35710.0,35699.0,0.0835]
[1610338109233,0.13632608,35710.0,35700.0,0.0002]
[1610338109432,0.10461,35713.0,35700.0,0.0002]
[1610338109833,0.10461,35713.0,35698.0,0.0002]
[1610338110434,0.0833,35712.0,35698.0,0.0002]
[1610338110635,0.10461,35713.0,35698.0,0.0002]
[1610338111034,0.10461,35713.0,35696.0,0.085]
[1610338111436,0.13632608,35697.0,35696.0,0.085]
[1610338111836,0.13632608,35697.0,35696.0,0.0002]
[1610338112035,0.13632608,35697.0,35640.0,0.0836]
[1610338112236,0.13632608,35697.0,35588.0,1.0]
[1610338112636,0.13632608,35697.0,35650.0,0.0002]
[1610338112835,0.13632608,35697.0,35650.0,0.08401]
[1610338113236,0.13632608,35697.0,35650.0,0.16771]
[1610338113439,0.084,35700.0,35657.0,0.13632608]
[1610338113838,0.084,35700.0,35658.0,0.0002]
[1610338114038,0.084,35700.0,35658.0,0.07698]
[1610338114636,0.084,35700.0,35659.0,0.0002]
[1610338115037,3.5397,35675.0,35659.0,0.0002]
[1610338115438,3.5397,35675.0,35668.0,0.13632608]
[1610338115637,3.5397,35675.0,35669.0,0.0002]
[1610338116039,0.2943,35757.0,35669.0,0.0002]
[1610338116237,0.0836,35740.0,35669.0,0.0002]
[1610338116439,0.0831,35756.0,35669.0,0.0002]
[1610338116640,0.3226,35756.0,35669.0,0.0002]
[1610338116838,0.2395,35756.0,35670.0,0.0834]
[1610338117038,3.167,35729.0,35670.0,0.0834]
[1610338117239,3.27102,35729.0,35670.0,0.0834]
[1610338117439,0.13632608,35718.0,35715.0,0.13632608]
[1610338117641,3.167,35729.0,35715.0,0.13632608]
[1610338117838,3.167,35729.0,35716.0,0.0002]
[1610338118642,3.167,35729.0,35717.0,0.084]
[1610338119238,0.1556,35792.0,35718.0,0.0002]
[1610338119439,0.13632608,35760.0,35749.0,0.13632608]
[1610338119639,0.13632608,35760.0,35750.0,0.0002]
[1610338119838,0.13632608,35760.0,35750.0,0.10578]
[1610338120039,0.09134,35786.0,35750.0,0.10578]
[1610338120240,0.09134,35786.0,35751.0,0.0002]
[1610338121439,0.13632608,35752.0,35751.0,0.0002]
[1610338122243,0.17404,35786.0,35751.0,0.0002]
[1610338122639,1.0,35772.0,35751.0,1.0002]
[1610338122841,1.0,35772.0,35752.0,0.0002]
[1610338123341,1.0,35772.0,35757.0,0.13632608]
[1610338123642,1.0,35772.0,35758.0,0.0002]
[1610338123843,1.0,35772.0,35758.0,0.10554]
[1610338124143,1.0,35772.0,35759.0,0.0002]
[1610338124543,1.0,35769.0,35759.0,0.0002]
[1610338125343,0.13632608,35760.0,35759.0,0.0002]
[1610338126943,1.0,35772.0,35759.0,0.0002]
[1610338127345,1.0,35772.0,35771.0,0.13632608]
[1610338127544,1.0,35772.0,35771.0,0.21434608]
[1610338127947,1.0,35772.0,35771.0,0.21454608]
[1610338128145,0.7388,35772.0,35771.0,0.21454608]
[1610338128345,3.26070266,35860.0,35771.0,0.21454608]
[1610338128346,0.4771,35853.0,35771.0,0.21454608]
[1610338128545,0.4771,35853.0,35771.0,6.21454608]
[1610338128546,1.0,35820.0,35771.0,6.21454608]
[1610338129145,1.0,35820.0,35772.0,0.02577634]
[1610338129346,0.13632608,35817.0,35804.0,0.13632608]
[1610338129545,1.0,35820.0,35804.0,0.20707608]
[1610338129945,1.0,35820.0,35804.0,0.20727608]
[1610338130147,1.0,35820.0,35804.0,0.07095]
[1610338130345,1.0,35820.0,35805.0,0.0002]
[1610338130547,0.1556,35838.0,35805.0,0.0002]
[1610338130946,0.0826,35837.0,35805.0,0.0002]
[1610338131346,0.13632608,35806.0,35805.0,0.0002]
[1610338131746,0.08877,35835.0,35805.0,0.0002]
[1610338133349,0.08877,35835.0,35814.0,0.13632608]
[1610338133549,0.08877,35835.0,35814.0,0.07257]
[1610338133951,0.37934608,35873.0,35814.0,0.07257]
[1610338134153,0.0838,35872.0,35815.0,0.0002]
[1610338134349,0.16537,35872.0,35815.0,0.0002]
[1610338134749,4.6728,35844.0,35815.0,0.0002]
[1610338134951,4.78785,35844.0,35815.0,0.0002]
[1610338135151,4.78785,35844.0,35814.0,0.06477]
[1610338135350,4.78785,35844.0,35804.0,0.03552]
[1610338135551,0.13632608,35815.0,35787.0,3.10872]
[1610338135952,0.13632608,35815.0,35759.0,0.2744]
[1610338136153,0.13632608,35815.0,35788.0,0.0002]
[1610338136353,0.13632608,35815.0,35788.0,0.11605]
[1610338136553,0.13632608,35815.0,35788.0,0.11585]
[1610338136756,0.0848,35814.0,35789.0,0.0849]
[1610338136954,0.19214,35814.0,35789.0,0.0002]
[1610338137254,0.19214,35814.0,35790.0,0.0002]
[1610338137453,0.13632608,35791.0,35790.0,0.0002]
[1610338137655,0.13632608,35791.0,35789.0,0.0002]
[1610338138055,0.66002608,35791.0,35779.0,0.0002]
[1610338138855,0.66002608,35791.0,35760.0,0.0002]
[1610338139456,0.5237,35791.0,35776.0,0.13632608]
[1610338140057,0.5237,35791.0,35777.0,0.0002]
[1610338140458,3.6198,35795.0,35777.0,0.0002]
[1610338141261,0.0842,35794.0,35769.0,0.0002]
[1610338141461,0.13632608,35770.0,35769.0,0.0002]
[1610338141863,0.13632608,35770.0,35760.0,0.0002]
[1610338142062,0.13632608,35770.0,35759.0,0.0002]
[1610338142463,0.22613608,35770.0,35759.0,0.0002]
[1610338142870,0.22613608,35770.0,35752.0,0.0002]
[1610338143067,0.22613608,35770.0,35736.0,0.02577606]
[1610338143266,4.0957,35766.0,35736.0,0.02577606]
[1610338143462,4.0957,35766.0,35742.0,0.13632608]
[1610338143662,4.0957,35766.0,35721.0,3.9684]
[1610338143663,4.0957,35766.0,35728.0,0.07263]
[1610338143863,4.0957,35766.0,35743.0,0.0002]
[1610338144264,4.0957,35766.0,35729.0,0.0002]
[1610338145463,0.13632608,35748.0,35740.0,0.13632608]
[1610338146064,0.08243,35752.0,35741.0,0.0002]
[1610338147465,0.08243,35752.0,35751.0,0.13632608]
[1610338147665,0.08243,35752.0,35741.0,0.0002]
[1610338148066,0.08243,35752.0,35751.0,0.0002]
[1610338148266,0.08243,35752.0,35736.0,0.10404]
[1610338148465,1.08243,35752.0,35736.0,0.10404]
[1610338149667,1.08243,35752.0,35749.0,0.13632608]
[1610338149866,1.08243,35752.0,35736.0,0.07136608]
[1610338150066,1.0,35752.0,35750.0,0.0002]
[1610338150267,1.0,35752.0,35737.0,0.0002]
[1610338150467,0.08376,35761.0,35737.0,0.0002]
[1610338151067,0.0838,35760.0,35737.0,0.0002]
[1610338151466,0.13632608,35738.0,35737.0,0.0002]
[1610338151668,0.13632608,35738.0,35721.0,3.90952563]
[1610338151868,0.13632608,35738.0,35702.0,3.7273]
[1610338152270,0.13632608,35738.0,35709.0,0.0002]
[1610338152467,0.13632608,35738.0,35709.0,0.08718]
[1610338152667,0.21942608,35738.0,35709.0,0.08718]
[1610338153068,0.13632608,35738.0,35710.0,0.0002]
[1610338153468,0.13632608,35711.0,35710.0,0.0002]
[1610338154070,0.13632608,35711.0,35685.0,0.0002]
[1610338154268,0.13632608,35711.0,35681.0,0.0829]
[1610338154469,1.0,35697.0,35681.0,0.0829]
[1610338154670,1.0,35697.0,35682.0,0.0002]
[1610338154871,1.0,35697.0,35682.0,0.10015]
[1610338155670,1.0,35697.0,35689.0,0.13632608]
[1610338155871,0.7252,35697.0,35690.0,0.0002]
[1610338156071,0.07422,35723.0,35696.0,6.0]
[1610338156671,0.07422,35723.0,35697.0,0.02581561]
[1610338157273,4.672,35735.0,35697.0,0.02581561]
[1610338157675,4.672,35735.0,35727.0,0.13632608]
[1610338157873,4.672,35735.0,35727.0,0.25111608]
[1610338158276,4.672,35735.0,35730.0,1.0]
[1610338158875,4.672,35735.0,35731.0,0.0002]
[1610338159676,4.672,35735.0,35734.0,0.13632608]
[1610338160078,4.672,35735.0,35734.0,0.13652608]
[1610338160276,4.672,35735.0,35734.0,1.13652608]
[1610338161979,0.13632608,35739.0,35734.0,1.13652608]
[1610338162582,0.13632608,35739.0,35735.0,0.0002]
[1610338163183,0.823,35756.0,35736.0,0.085]
[1610338163382,0.823,35756.0,35736.0,0.10617]
[1610338163581,3.6195,35763.0,35755.0,0.13632608]
[1610338163782,3.6195,35763.0,35755.0,0.24220608]
[1610338164182,0.13632608,35767.0,35756.0,0.0002]
[1610338164780,0.28,35791.0,35756.0,0.0002]
[1610338164984,0.0827,35784.0,35756.0,0.0002]
[1610338165185,0.28,35791.0,35756.0,0.0002]
[1610338165383,0.0849,35790.0,35757.0,0.0833]
[1610338165584,4.1669,35792.0,35775.0,1.13632608]
[1610338165983,4.1669,35792.0,35776.0,0.0002]
[1610338167585,0.13632608,35777.0,35776.0,0.0002]
[1610338169588,0.13632608,35777.0,35755.0,0.13632608]
[1610338169789,0.13632608,35777.0,35755.0,0.12632608]
[1610338170190,0.13632608,35777.0,35756.0,0.0002]
[1610338170392,0.13632608,35777.0,35756.0,0.10785]
[1610338170790,0.13632608,35777.0,35757.0,0.0002]
[1610338171591,0.13632608,35758.0,35757.0,1.0002]
[1610338172590,0.10816,35772.0,35757.0,1.0002]
[1610338173191,1.0,35775.0,35758.0,0.0002]
[1610338173591,0.1556,35779.0,35769.0,0.13632608]
[1610338173791,0.1556,35779.0,35769.0,0.24713608]
[1610338173990,0.1556,35779.0,35770.0,0.0002]
[1610338174790,0.0506,35779.0,35770.0,0.0847]
[1610338174990,3.1995,35807.0,35770.0,0.0847]
[1610338175190,0.1556,35805.0,35771.0,0.0002]
[1610338175390,3.1995,35807.0,35771.0,0.0002]
[1610338175592,3.1995,35807.0,35793.0,1.0]
[1610338175992,3.1995,35807.0,35794.0,0.0002]
[1610338177192,3.1995,35807.0,35795.0,0.0837]
[1610338177594,3.1995,35807.0,35796.0,0.0002]
[1610338177993,3.1995,35807.0,35791.0,0.8232]
[1610338178195,1.0,35797.0,35792.0,0.0002]
[1610338178394,1.09438,35797.0,35792.0,0.0002]
[1610338178794,1.09438,35797.0,35771.0,0.0002]
[1610338179393,0.0847,35796.0,35771.0,0.0002]
[1610338179592,0.13632608,35772.0,35771.0,0.13652608]
[1610338180195,0.13632608,35772.0,35771.0,1.13652608]
[1610338181395,0.18199,35785.0,35771.0,1.13652608]
[1610338181596,0.13632608,35772.0,35771.0,1.13652608]
[1610338181795,0.09889,35785.0,35772.0,0.0002]
[1610338182396,1.0,35789.0,35772.0,0.0002]
[1610338183596,0.13632608,35773.0,35772.0,0.0002]
[1610338183997,0.08882,35782.0,35772.0,0.0002]
[1610338184197,0.08882,35782.0,35772.0,0.07126]
[1610338184597,0.08882,35782.0,35773.0,0.0002]
[1610338184799,4.1047,35806.0,35773.0,0.0002]
[1610338185600,0.13632608,35798.0,35795.0,0.13632608]
[1610338186200,0.13632608,35798.0,35797.0,1.0]
[1610338186602,0.13632608,35798.0,35797.0,1.0002]
[1610338187001,4.1047,35806.0,35797.0,1.0002]
[1610338187403,0.0826,35805.0,35798.0,0.0002]
[1610338187605,0.1556,35813.0,35804.0,0.13632608]
[1610338187806,1.10079,35815.0,35804.0,0.13632608]
[1610338188206,0.10079,35815.0,35805.0,0.0002]
[1610338189006,2.84053789,35835.0,35805.0,0.08064]
[1610338189406,2.84041207,35837.0,35806.0,0.0002]
[1610338189607,2.84041207,35837.0,35817.0,0.13632608]
[1610338190007,2.83920885,35839.0,35817.0,0.13632608]
[1610338190207,2.83920885,35839.0,35827.0,1.0]
[1610338190406,0.1556,35840.0,35827.0,1.0]
[1610338190607,0.1556,35840.0,35828.0,0.0002]
[1610338191707,0.13632608,35843.0,35828.0,0.0002]
[1610338192509,0.13632608,35843.0,35829.0,0.083]
[1610338193110,0.13632608,35843.0,35830.0,0.0002]
[1610338193512,0.13632608,35843.0,35817.0,0.0002]
[1610338193711,0.08425,35843.0,35821.0,0.13632608]
[1610338193913,0.08425,35843.0,35817.0,0.0002]
[1610338194110,3.4441,35822.0,35816.0,0.083]
[1610338194310,3.53276,35822.0,35790.0,0.07173]
[1610338194510,0.08866,35822.0,32000.0,0.5]
[1610338194711,0.08866,35822.0,35796.0,0.0002]
[1610338194914,0.08866,35822.0,35781.0,0.02575956]
[1610338195112,0.08866,35822.0,35764.0,0.10113]
[1610338195312,0.0847,35821.0,35764.0,0.10113]
[1610338195514,0.0847,35821.0,35782.0,0.0002]
[1610338195715,0.13632608,35783.0,35765.0,0.0002]
[1610338196718,0.13632608,35783.0,35757.0,0.084]
[1610338196916,0.0839,35782.0,35757.0,0.084]
[1610338197315,0.0839,35782.0,35758.0,0.0002]
[1610338197716,0.13632608,35759.0,35758.0,0.0002]
[1610338197915,0.21060608,35759.0,35758.0,0.0002]
[1610338198116,0.21060608,35759.0,35737.0,4.3565]
[1610338198318,1.21060608,35759.0,35738.0,0.0002]
[1610338198516,1.21060608,35759.0,35739.0,0.0837]
[1610338198720,1.21060608,35759.0,35738.0,0.0002]
[1610338198920,1.29500608,35759.0,35738.0,0.0002]
[1610338199121,5.99480608,35759.0,35738.0,0.0002]
[1610338199523,5.91040608,35759.0,35738.0,0.0002]
[1610338199721,0.13632608,35742.0,35739.0,0.0848]
[1610338199921,5.77408,35759.0,35735.0,0.13632608]
[1610338200121,5.77408,35759.0,35736.0,0.0002]
[1610338200322,4.77408,35759.0,35741.0,6.0]
[1610338200723,4.77408,35759.0,35742.0,0.0002]
[1610338201725,4.77408,35759.0,35756.0,0.13632608]
[1610338202327,4.77408,35759.0,35757.0,0.0002]
[1610338203829,0.13632608,35758.0,35757.0,0.0002]
[1610338204229,0.21982608,35758.0,35755.0,0.0002]
[1610338204429,0.21982608,35758.0,35738.0,0.0002]
[1610338204629,0.21982608,35758.0,35736.0,0.0002]
[1610338205830,0.13632608,35737.0,35722.0,0.08631]
[1610338206031,0.24679608,35737.0,35723.0,0.0002]
[1610338206633,0.24679608,35737.0,35712.0,0.0002]
[1610338207032,0.24679608,35737.0,35701.0,0.08421]
[1610338207434,0.24679608,35737.0,35702.0,0.0002]
[1610338207832,0.13632608,35703.0,35702.0,0.0002]
[1610338208232,0.13632608,35703.0,35694.0,0.0002]
[1610338209834,0.13632608,35695.0,35694.0,0.0002]
[1610338212236,1.13632608,35695.0,35694.0,0.0002]
[1610338212435,1.13632608,35695.0,35674.0,0.0847]
[1610338212635,1.13632608,35695.0,35675.0,0.0002]
[1610338213236,1.13632608,35695.0,35673.0,0.0002]
[1610338213436,1.22353608,35695.0,35673.0,0.0002]
[1610338213836,0.13632608,35674.0,35673.0,0.0002]
[1610338215636,0.13632608,35674.0,35652.0,0.13632608]
[1610338216437,0.13632608,35674.0,35582.0,1.0]
[1610338216839,0.083,35673.0,35613.0,0.0002]
[1610338217438,0.083,35673.0,35610.0,0.0002]
[1610338217640,0.083,35673.0,35594.0,0.0002]
[1610338217839,0.13632608,35615.0,35614.0,0.13632608]
[1610338218239,0.13632608,35615.0,35614.0,0.13652608]
[1610338218639,0.13632608,35615.0,35614.0,0.0002]
[1610338219241,0.13632608,35615.0,35606.0,0.1681]
[1610338219443,0.13632608,35615.0,35594.0,0.0002]
[1610338219842,0.13632608,35595.0,35589.0,0.13632608]
[1610338220044,0.1018,35624.0,35590.0,0.0002]
[1610338220242,1.0,35600.0,35590.0,0.09569]
[1610338220844,1.0,35600.0,35591.0,0.0002]
[1610338221043,1.0831,35600.0,35591.0,0.0002]
[1610338221843,0.13632608,35592.0,35591.0,0.0002]
[1610338222244,0.13632608,35592.0,35586.0,0.0002]
[1610338222845,0.10984,35604.0,35586.0,0.0002]
[1610338223046,2.12349982,35667.0,35586.0,0.0002]
[1610338223246,0.0838,35669.0,35586.0,0.0002]
[1610338223645,0.0838,35669.0,35587.0,0.0834]
[1610338223846,0.0838,35669.0,35615.0,0.13632608]
[1610338224047,0.0849,35662.0,35615.0,0.23749608]
[1610338224247,0.0849,35662.0,35616.0,0.0002]
[1610338225446,2.19638572,35688.0,35616.0,0.0002]
[1610338225645,0.0837,35688.0,35616.0,0.0002]
[1610338225846,0.13632608,35617.0,35616.0,0.0002]
[1610338226246,0.13632608,35617.0,35616.0,1.0002]
[1610338227248,1.0,35644.0,35616.0,1.0002]
[1610338227747,1.0,35644.0,35622.0,0.13632608]
[1610338228349,0.07731,35648.0,35622.0,0.13632608]
[1610338228350,0.07731,35648.0,35623.0,0.0002]
[1610338228550,0.07731,35648.0,35623.0,0.09854]